bitfinex/quotes_ETHUSD_20250623
["timestamp","ask_amount","ask_price","bid_price","bid_amount"]
[1750709801948,2.787,2337.6,2337.3,2.26667925]
[1750709802701,0.7887,2337.7,2337.3,2.26667925]
[1750709802910,0.7887,2337.7,2337.4,0.22666793]
[1750709803140,0.7887,2337.7,2337.3,6.54501874]
[1750709803353,0.7887,2337.7,2337.3,2.26667925]
[1750709803522,0.7887,2337.7,2337.5,4.27790048]
[1750709803736,3.5757,2338.1,2337.7,4.27766855]
[1750709803910,3.93327,2338.1,2337.7,4.27766855]
[1750709804265,3.93327,2338.1,2337.3,12.26667925]
[1750709804266,0.7887,2338.1,2337.3,12.26667925]
[1750709804457,0.7887,2338.1,2337.4,4.27825789]
[1750709804645,0.8112,2338.4,2337.8,4.27743823]
[1750709804952,3.5982,2338.4,2337.8,4.27743823]
[1750709805155,4.98602,2338.4,2337.6,4.27781903]
[1750709805317,4.98602,2338.4,2337.3,2.26667925]
[1750709805515,4.98602,2338.4,2337.8,4.27736644]
[1750709805757,4.98602,2338.4,2337.4,4.27825789]
[1750709805966,4.98602,2338.4,2337.7,4.27756566]
[1750709806166,4.98602,2338.4,2337.8,4.27744465]
[1750709806472,1.526602,2338.3,2337.8,4.27744465]
[1750709806669,0.8112,2338.4,2337.3,2.26667925]
[1750709806818,3.5982,2338.4,2338.0,4.27715746]
[1750709807018,3.5982,2338.4,2337.8,4.27737671]
[1750709807019,3.5982,2338.4,2337.8,4.27745762]
[1750709807656,3.5982,2338.4,2337.3,2.26667925]
[1750709807964,0.55,2338.3,2337.4,4.27814256]
[1750709808166,0.41482,2338.2,2337.5,4.27806212]
[1750709808327,0.41482,2338.2,2337.3,2.26667925]
[1750709808514,0.8112,2338.4,2337.7,4.27761672]
[1750709808717,0.8112,2338.4,2337.3,2.26667925]
[1750709808923,0.7933,2338.2,2337.3,2.26667925]
[1750709809123,0.7933,2338.2,2337.3,6.54501113]
[1750709809520,0.55,2338.1,2337.3,2.26667925]
[1750709809719,0.55,2338.1,2337.4,4.27807563]
[1750709809957,0.55,2338.1,2337.3,2.26667925]
[1750709810474,0.55,2337.9,2337.3,2.26667925]
[1750709810631,2.787,2337.8,2337.3,2.26667925]
[1750709810832,0.3337,2337.7,2337.3,6.54499452]
[1750709811046,0.773,2338.0,2337.3,6.54503449]
[1750709811346,2.787,2337.9,2337.3,6.54503449]
[1750709811654,2.787,2337.9,2337.5,4.27798538]
[1750709812020,2.787,2337.9,2337.4,4.27815533]
[1750709812330,2.787,2337.9,2337.4,4.27825789]
[1750709812530,2.787,2337.8,2337.4,4.27816989]
[1750709812767,0.773,2338.0,2337.8,4.27743216]
[1750709812923,0.8151,2338.4,2337.8,4.27743216]
[1750709813120,2.787,2338.5,2338.3,4.27661121]
[1750709813336,0.8151,2338.7,2338.4,4.27642832]
[1750709813522,0.8151,2338.7,2338.3,4.27657789]
[1750709813939,0.8151,2338.7,2338.5,4.27620032]
[1750709814260,0.8151,2338.7,2338.4,4.27632016]
[1750709814464,0.8151,2338.7,2338.1,4.27697703]
[1750709814669,0.8151,2338.7,2338.3,4.27653468]
[1750709814866,0.8151,2338.7,2338.4,4.27641202]
[1750709815075,0.8151,2338.7,2338.0,4.27711825]
[1750709815228,0.8151,2338.7,2338.3,4.27652462]
[1750709815425,0.8151,2338.7,2338.0,4.27709127]
[1750709815632,3.21285097,2338.9,2338.4,4.27628953]
[1750709815869,3.21285097,2338.9,2338.2,4.27669838]
[1750709815870,2.76,2338.9,2338.8,4.27569693]
[1750709816386,2.76,2338.9,2338.7,4.27578939]
[1750709816534,2.76,2338.9,2338.8,4.27569693]
[1750709816730,10.0,2339.9,2338.8,4.27569693]
[1750709816731,0.7721,2339.6,2338.8,1.21846969]
[1750709816983,0.7721,2340.7,2339.5,0.7909]
[1750709817281,0.7721,2340.7,2339.8,4.27374748]
[1750709817485,0.7721,2340.7,2339.6,4.27414837]
[1750709817686,0.7721,2340.7,2339.6,4.27423491]
[1750709817982,0.7721,2340.5,2339.7,4.27395972]
[1750709818137,0.7721,2340.5,2339.5,4.27433709]
[1750709818459,2.76,2340.4,2339.4,4.27452933]
[1750709818667,0.7721,2340.3,2338.8,1.21846969]
[1750709818867,0.7721,2340.1,2338.6,10.0]
[1750709819066,0.55,2340.0,2339.0,4.27521806]
[1750709819246,0.55,2339.8,2338.8,4.27560545]
[1750709819455,1.3221,2339.6,2338.7,4.27586296]
[1750709820012,1.3221,2339.6,2338.6,4.27589354]
[1750709820315,0.40821,2339.5,2338.7,4.27584138]
[1750709820501,0.40821,2339.5,2338.6,4.27602788]
[1750709820682,0.40821,2339.5,2338.4,8.505]
[1750709820882,0.7721,2339.6,2339.2,4.2748153]
[1750709821067,0.7721,2339.6,2338.6,4.2760626]
[1750709821419,0.7721,2339.6,2338.3,14.27659973]
[1750709821711,2.759,2339.5,2338.8,4.27559703]
[1750709822011,2.759,2339.5,2338.5,4.27614907]
[1750709822012,0.55,2339.4,2338.5,4.27614907]
[1750709822213,1.1606,2339.3,2338.5,4.27614907]
[1750709822377,1.1606,2339.3,2338.7,4.27581991]
[1750709822578,0.8297,2339.3,2338.4,4.27642832]
[1750709822803,0.8297,2339.3,2338.3,4.27661121]
[1750709822804,0.8297,2339.3,2338.9,4.27540162]
[1750709823000,0.8297,2339.3,2338.3,10.0]
[1750709823331,0.75,2339.8,2338.9,10.8047]
[1750709823494,0.75,2339.8,2339.4,4.27443534]
[1750709823673,0.75,2339.8,2339.5,4.27440866]
[1750709824013,0.75,2339.8,2339.5,4.27433114]
[1750709824211,0.75,2339.8,2339.3,4.27463796]
[1750709824415,0.75,2339.8,2338.9,4.27538843]
[1750709824778,0.75,2339.8,2338.6,22.77303633]
[1750709824975,0.75,2339.8,2339.2,4.27496324]
[1750709825174,0.75,2339.8,2339.2,4.27486442]
[1750709825611,0.75,2339.8,2339.1,4.27508292]
[1750709825938,0.75,2339.8,2339.2,4.27494588]
[1750709826928,0.75,2339.8,2339.1,4.27504901]
[1750709827112,1.1009,2339.8,2339.2,4.27486581]
[1750709827738,1.1009,2339.8,2339.0,4.27523718]
[1750709828161,1.1009,2339.8,2339.1,4.27512916]
[1750709828440,1.1009,2339.8,2339.2,4.27485651]
[1750709829045,1.1009,2339.8,2338.9,8.492]
[1750709829267,4.27004413,2341.9,2338.9,8.492]
[1750709829268,0.8148,2340.2,2339.9,4.2736117]
[1750709829469,3.11221,2340.6,2339.2,5.07940212]
[1750709829470,1.16801,2340.6,2340.4,4.27267333]
[1750709829607,0.8148,2340.6,2339.8,4.27378614]
[1750709829808,0.8148,2340.6,2340.4,4.27276304]
[1750709830019,0.8272,2341.3,2340.9,4.27176449]
[1750709830251,0.8272,2341.9,2340.5,4.2725321]
[1750709830408,0.8272,2341.9,2340.1,4.27332165]
[1750709830605,0.8272,2341.5,2340.0,0.821]
[1750709830847,13.032,2341.4,2340.0,0.821]
[1750709831028,0.8272,2341.3,2340.0,4.27338053]
[1750709831341,0.55,2341.2,2339.7,0.821]
[1750709831541,0.8276,2341.1,2340.1,4.27332165]
[1750709831708,0.55,2341.0,2339.7,0.821]
[1750709831915,0.8276,2340.9,2339.7,4.27393436]
[1750709832111,0.8276,2340.7,2340.2,4.27305326]
[1750709832356,0.8276,2341.2,2340.4,4.27268646]
[1750709832522,0.8276,2341.2,2339.9,0.8091]
[1750709832523,3.5856,2341.2,2340.6,4.27223348]
[1750709832845,0.29362436,2342.6,2341.4,4.27094752]
[1750709832846,0.8276,2342.3,2341.4,4.27094752]
[1750709833046,2.758,2342.2,2341.4,4.27082398]
[1750709833232,0.35856,2342.1,2341.1,8.482]
[1750709833408,0.8276,2342.3,2341.6,4.2704839]
[1750709833613,0.8276,2342.3,2341.1,8.482]
[1750709833805,2.758,2342.2,2341.2,4.27124112]
[1750709834051,2.758,2342.2,2341.2,4.27114857]
[1750709834342,2.758,2342.2,2341.5,4.27071516]
[1750709834546,4.14366,2342.2,2341.4,4.27085493]
[1750709834749,4.14366,2342.2,2340.9,0.8091]
[1750709834949,4.14366,2342.2,2340.1,4.82316605]
[1750709834950,10.0,2341.6,2340.1,0.7795]
[1750709835125,0.788,2341.2,2339.7,0.7795]
[1750709835329,0.788,2341.2,2339.7,13.77731972]
[1750709835526,3.545,2341.2,2340.2,4.27312494]
[1750709835852,3.545,2341.2,2339.8,4.27386956]
[1750709836019,3.545,2341.2,2339.7,0.7795]
[1750709836020,2.757,2341.1,2340.0,4.27339685]
[1750709836357,0.788,2341.0,2339.8,4.2737347]
[1750709836863,0.55,2340.9,2339.4,4.27454899]
[1750709837180,0.788,2340.7,2339.7,4.2739643]
[1750709837316,0.788,2340.7,2339.3,4.27478305]
[1750709837512,0.788,2340.7,2339.6,4.27407804]
[1750709837763,0.788,2340.7,2339.6,4.27408767]
[1750709838065,0.788,2340.7,2339.9,4.27366873]
[1750709838066,2.757,2340.6,2339.9,4.27366873]
[1750709838353,2.757,2340.6,2339.2,9.2525]
[1750709838354,3.1115,2340.6,2339.7,4.27397503]
[1750709838559,3.1115,2340.6,2339.6,4.27423491]
[1750709838850,3.1115,2340.6,2339.3,4.2747288]
[1750709839015,2.757,2340.6,2339.7,4.27394912]
[1750709839212,2.757,2340.6,2339.8,4.27385613]
[1750709839437,0.788,2340.7,2339.3,10.0]
[1750709839746,10.268,2341.2,2340.7,4.27214662]
[1750709839747,0.788,2341.1,2340.7,4.27214662]
[1750709840156,0.788,2341.7,2340.5,4.27259132]
[1750709840314,0.788,2341.7,2341.0,4.27167551]
[1750709840515,0.8272,2342.1,2341.1,4.27149405]
[1750709840869,0.8272,2342.1,2340.6,0.50520913]
[1750709841032,0.8272,2342.1,2341.4,4.27093038]
[1750709841214,0.8272,2342.1,2340.6,4.77760167]
[1750709841414,0.8272,2342.1,2341.1,0.761]
[1750709841617,0.8272,2342.1,2341.3,4.27113142]
[1750709841862,10.268,2342.3,2341.9,4.26993404]
[1750709842026,0.7638,2342.5,2341.2,4.27131295]
[1750709842231,3.5208,2342.5,2341.4,4.270949]
[1750709842457,3.5208,2342.5,2341.5,0.88507276]
[1750709842657,3.5208,2342.5,2341.9,4.26996954]
[1750709842845,3.5208,2342.5,2342.0,4.26967763]
[1750709843215,0.7638,2342.5,2341.8,0.761]
[1750709843525,0.7638,2342.5,2341.1,0.761]
[1750709843726,0.7638,2342.5,2341.2,14.27131385]
[1750709843924,0.7638,2342.5,2342.0,4.26984775]
[1750709844158,0.7638,2342.5,2342.1,4.26966698]
[1750709844353,0.7638,2342.5,2342.2,4.26937959]
[1750709844650,0.7638,2342.5,2341.8,4.27020487]
[1750709844651,0.7638,2342.5,2341.7,4.2702293]
[1750709845078,0.7638,2342.5,2341.8,4.2702174]
[1750709845236,0.7638,2342.5,2341.5,0.8193]
[1750709845686,0.7638,2342.5,2341.4,8.458]
[1750709845968,0.7638,2342.5,2341.9,4.26991861]
[1750709846697,0.7638,2342.5,2341.5,4.2707666]
[1750709846698,0.7638,2342.5,2341.5,4.27061259]
[1750709846979,0.7638,2342.5,2342.0,4.26983492]
[1750709847136,0.7638,2342.5,2342.1,4.26958727]
[1750709847540,0.7638,2342.5,2341.9,4.26995774]
[1750709847772,2.726,2342.4,2341.2,0.8193]
[1750709847958,0.34898,2342.3,2341.2,0.8193]
[1750709848164,2.726,2342.3,2341.6,4.27041991]
[1750709848550,2.726,2342.3,2341.4,4.27082468]
[1750709848754,0.7715,2342.2,2340.9,4.27186124]
[1750709848967,0.7715,2342.2,2341.5,4.27067387]
[1750709849181,0.7715,2342.2,2341.4,4.27091622]
[1750709849352,0.7215,2342.2,2341.4,0.42709162]
[1750709849561,0.7215,2342.2,2341.3,4.27102928]
[1750709849742,0.7215,2342.2,2341.4,4.27085344]
[1750709849945,0.7215,2342.2,2341.5,4.27059279]
[1750709850177,0.7215,2342.2,2340.8,9.2744]
[1750709850481,0.7215,2342.2,2340.9,10.0]
[1750709850684,0.7215,2342.2,2341.9,4.27003066]
[1750709850855,0.29362436,2342.6,2341.9,4.27003066]
[1750709851182,0.29362436,2342.6,2341.7,4.27032671]
[1750709851345,3.01962436,2342.6,2341.8,4.27021673]
[1750709851783,3.01962436,2342.6,2340.9,22.99781972]
[1750709851784,0.29362436,2342.6,2341.3,4.2711166]
[1750709852083,2.726,2342.5,2341.9,4.26988077]
[1750709852282,3.4994,2342.5,2342.0,4.269769]
[1750709852453,0.7734,2342.5,2342.0,4.269769]
[1750709852855,0.7734,2342.5,2341.4,4.78107042]
[1750709853093,0.7734,2342.5,2341.7,4.2703421]
[1750709853384,0.7734,2342.5,2341.7,4.27028026]
[1750709853690,1.15320244,2342.5,2341.8,4.27021234]
[1750709854006,1.15320244,2342.5,2341.4,4.27082137]
[1750709854149,0.8247,2342.4,2341.3,4.27113142]
[1750709854648,0.8223,2341.4,2339.6,0.826]
[1750709854863,0.8223,2340.8,2339.3,0.826]
[1750709855111,0.7852,2340.6,2339.2,4.2748316]
[1750709855407,0.7852,2340.4,2338.6,9.2514]
[1750709855607,0.7852,2340.4,2338.8,4.27569693]
[1750709855781,2.725,2340.3,2338.9,4.27551413]
[1750709855993,2.725,2340.3,2339.0,0.42755141]
[1750709856208,2.725,2340.3,2339.3,4.27461065]
[1750709856417,0.7852,2340.8,2339.5,0.8124]
[1750709856711,0.7852,2340.8,2340.2,4.27306007]
[1750709857175,0.7852,2340.8,2339.5,0.8124]
[1750709857176,3.5112,2340.8,2339.8,4.2737142]
[1750709857380,3.5112,2340.8,2339.9,4.70096835]
[1750709857979,3.5112,2340.8,2340.0,4.27345019]
[1750709858179,3.5112,2340.8,2339.9,0.42737142]
[1750709858402,3.5112,2340.8,2340.0,4.27337313]
[1750709858614,3.50924311,2340.8,2339.9,4.27361181]
[1750709858903,3.50924311,2340.8,2340.1,4.27318015]
[1750709859261,13.54781972,2341.4,2339.8,4.27382093]
[1750709859262,8.77024311,2341.3,2339.8,4.27382093]
[1750709859468,2.726,2341.2,2339.9,4.27354452]
[1750709859778,1.14962431,2341.1,2339.5,10.8124]
[1750709859977,2.726,2341.0,2340.2,4.27304237]
[1750709860208,15.72381972,2341.0,2339.5,0.8124]
[1750709860410,15.72381972,2341.0,2339.6,4.27423491]
[1750709860411,0.55,2340.9,2339.6,4.27423491]
[1750709860721,2.726,2340.8,2339.3,14.27478305]
[1750709861011,2.726,2340.8,2339.5,4.27441761]
[1750709861191,2.726,2340.7,2339.9,4.27356437]
[1750709861389,2.726,2340.7,2339.4,4.27460032]
[1750709861693,2.726,2340.9,2340.1,4.27331432]
[1750709861893,2.726,2340.9,2339.9,0.8124]
[1750709862096,3.11356243,2340.9,2340.0,4.2734945]
[1750709862307,0.6254,2340.8,2339.9,0.50861517]
[1750709862517,0.5754,2340.8,2340.2,4.27301099]
[1750709862698,0.5754,2340.8,2339.7,10.0]
[1750709862898,2.727,2341.8,2341.0,4.27166283]
[1750709863099,2.727,2341.9,2341.2,4.27129763]
[1750709863315,2.727,2341.9,2341.3,4.27104538]
[1750709863687,2.727,2341.9,2341.2,4.2712229]
[1750709864027,2.727,2342.2,2341.2,4.2712192]
[1750709864209,2.727,2342.2,2341.1,4.27142331]
[1750709864210,1.2993,2342.1,2341.1,4.27142331]
[1750709864384,1.2993,2342.1,2341.3,4.27104763]
[1750709864590,1.2993,2342.1,2341.1,4.271427]
[1750709864783,1.2993,2342.1,2340.7,0.8124]
[1750709864989,0.40263,2342.0,2341.1,4.27147288]
[1750709865303,0.40263,2342.0,2341.2,4.27122387]
[1750709865616,0.5754,2341.9,2341.2,4.27122387]
[1750709866122,0.5754,2341.9,2341.0,4.27155324]
[1750709866426,0.5754,2341.9,2341.3,4.27105471]
[1750709866727,0.5754,2341.9,2341.4,4.27085109]
[1750709867388,0.5754,2341.9,2340.8,5.1962282]
[1750709867588,0.5754,2341.9,2341.2,4.27131239]
[1750709868135,0.5754,2341.9,2340.9,4.87266586]
[1750709868338,0.5754,2341.9,2340.7,4.27214608]
[1750709868743,0.5754,2341.7,2340.5,4.27250191]
[1750709868891,0.5754,2341.7,2340.4,4.27272827]
[1750709868892,0.5754,2341.5,2340.4,4.27271309]
[1750709869095,2.726,2341.6,2340.4,4.27271309]
[1750709869096,0.5754,2341.3,2340.4,4.27271309]
[1750709869907,0.5754,2341.3,2340.2,8.423]
[1750709870110,0.5754,2341.3,2340.3,4.27278414]
[1750709870310,0.5754,2341.3,2340.3,4.27295645]
[1750709870526,0.5754,2341.3,2340.4,4.27275524]
[1750709870697,0.5754,2341.3,2340.5,4.27255888]
[1750709870898,0.5754,2341.3,2340.6,4.27240878]
[1750709871219,0.5754,2341.3,2340.8,4.27196556]
[1750709871532,0.5754,2341.3,2341.0,4.27164253]
[1750709871706,0.5754,2341.3,2340.9,4.27174305]
[1750709871908,0.5754,2341.3,2340.7,4.272215]
[1750709872113,0.5754,2341.3,2340.8,0.4272215]
[1750709872447,0.5754,2341.3,2341.2,4.27131385]
[1750709872749,23.26381972,2342.3,2340.6,19.2021]
[1750709872750,0.5754,2341.7,2340.6,19.2021]
[1750709872926,0.5754,2342.2,2342.0,4.26974799]
[1750709873234,0.5754,2342.2,2341.4,4.270949]
[1750709873438,0.5754,2342.2,2341.7,4.27038017]
[1750709873594,0.57156308,2342.2,2341.8,4.27012295]
[1750709874232,0.57156308,2342.2,2342.1,4.26967251]
[1750709874545,0.29362436,2342.6,2342.3,4.26920824]
[1750709874866,0.29362436,2342.6,2341.9,4.27003714]
[1750709875033,0.29362436,2342.6,2342.5,4.26894343]
[1750709875849,0.29362436,2342.6,2342.4,4.26903803]
[1750709876012,0.29362436,2342.6,2341.6,8.41]
[1750709876730,0.5716,2342.5,2341.8,4.27015394]
[1750709876900,0.5716,2342.5,2342.3,4.26915511]
[1750709877107,0.29362436,2342.6,2342.4,4.26912568]
[1750709877532,0.29362436,2342.6,2342.1,4.2696153]
[1750709877726,0.29362436,2342.6,2342.2,4.26942538]
[1750709877897,0.29362436,2342.6,2342.1,4.2696153]
[1750709877898,0.29362436,2342.6,2342.1,4.26958414]
[1750709878098,0.29362436,2342.6,2342.2,4.2694791]
[1750709878403,0.29362436,2342.6,2341.7,0.841]
[1750709878603,0.5716,2342.2,2341.1,4.27149116]
[1750709878810,0.5716,2342.2,2340.7,8.405]
[1750709879008,0.5716,2342.2,2341.0,4.2715847]
[1750709879233,0.5716,2342.2,2341.2,4.27119022]
[1750709879545,0.5716,2342.0,2341.1,4.27146835]
[1750709879742,0.5716,2342.0,2341.3,4.27097389]
[1750709880120,0.5716,2342.0,2340.7,13.03374773]
[1750709880309,0.5716,2342.0,2340.6,0.7709]
[1750709880310,0.5716,2342.0,2340.8,0.35662278]
[1750709880505,0.5716,2342.0,2341.2,4.27127889]
[1750709880736,0.89826,2342.0,2341.6,4.27044821]
[1750709880971,0.5716,2342.5,2341.8,4.27017913]
[1750709881258,0.5716,2342.5,2342.2,4.26939523]
[1750709881463,0.5716,2342.5,2342.2,4.26936996]
[1750709881601,0.5716,2342.5,2342.1,4.26955703]
[1750709881807,0.92812244,2342.5,2341.3,0.825]
[1750709882004,0.92812244,2342.5,2341.7,4.27029154]
[1750709882244,3.2666,2342.5,2341.6,4.2704508]
[1750709882444,3.2666,2342.5,2341.7,4.27037523]
[1750709882634,0.5716,2342.5,2342.3,4.26922571]
[1750709882835,0.5716,2342.5,2341.8,8.399]
[1750709883019,0.5716,2342.5,2342.3,4.2692223]
[1750709883221,0.5716,2342.5,2341.8,4.27013566]
[1750709883419,0.5716,2342.5,2341.8,4.27014308]
[1750709883708,0.5716,2342.5,2341.2,4.27131385]
[1750709883908,0.5716,2342.5,2341.1,8.398]
[1750709884131,0.5716,2342.3,2341.2,4.2712217]
[1750709884354,0.5716,2342.1,2340.5,0.8172]
[1750709884667,0.5716,2341.9,2340.8,4.27193674]
[1750709884879,0.5716,2341.9,2340.6,4.27240878]
[1750709885045,0.5716,2341.9,2340.5,1.17386849]
[1750709885046,3.2666,2341.9,2340.5,11.17386849]
[1750709885255,3.2666,2341.9,2341.4,4.27079683]
[1750709885471,3.2666,2341.9,2341.1,4.27140729]
[1750709885628,0.5716,2341.9,2340.7,8.395]
[1750709885831,13.29144408,2342.6,2342.3,4.26930794]
[1750709885832,0.5716,2342.4,2342.3,4.26930794]
[1750709886027,0.29362436,2342.6,2341.9,8.394]
[1750709886237,0.29362436,2342.6,2342.5,4.26894343]
[1750709892059,0.29362436,2342.6,2342.0,1.95255]
[1750709892223,0.29362436,2342.6,2342.5,4.26894343]
[1750709894138,0.29362436,2342.6,2342.4,4.26910779]
[1750709894139,0.29362436,2342.6,2342.4,4.26902158]
[1750709894339,0.29362436,2342.6,2342.5,4.26894343]
[1750709894550,0.29362436,2342.6,2342.5,15.03504343]
[1750709894551,0.2404821,2342.6,2342.5,15.03504343]
[1750709894750,0.2404821,2342.6,2342.5,0.7661]
[1750709895074,0.2404821,2342.6,2342.5,12.64694343]
[1750709895960,0.2404821,2342.6,2342.5,4.26894343]
[1750709896136,0.2404821,2342.6,2342.5,12.64394343]
[1750709897439,0.005,2344.0,2343.2,5.03376814]
[1750709897682,0.005,2344.0,2343.8,4.26644674]
[1750709897850,0.005,2344.0,2343.9,12.63939361]
[1750709898273,0.005,2344.0,2343.9,25.33339361]
[1750709899078,0.005,2344.0,2343.9,36.59331391]
[1750709899239,0.82498298,2345.3,2345.2,4.26402865]
[1750709899445,0.82498298,2345.3,2345.2,13.76818477]
[1750709899671,0.82498298,2345.3,2345.2,12.63302865]
[1750709899851,0.82498298,2345.3,2345.2,22.63302865]
[1750709900355,0.82498298,2345.3,2345.2,4.26402865]
[1750709900569,0.82498298,2345.3,2345.1,8.368]
[1750709900977,0.82498298,2345.3,2345.2,4.26402865]
[1750709901207,0.222986,2345.7,2345.2,6.35713152]
[1750709901372,0.222986,2345.7,2345.2,0.8299]
[1750709901678,0.222986,2345.7,2345.6,4.2633015]
[1750709901879,0.222986,2345.7,2345.6,12.6273015]
[1750709902468,0.222986,2345.7,2345.2,10.8299]
[1750709902672,0.29053359,2346.6,2346.5,5.09156631]
[1750709902874,0.02468834,2346.6,2346.5,9.1929]
[1750709903071,0.02468834,2346.6,2346.5,5.86156631]
[1750709903246,0.02468834,2346.6,2346.5,4.26166631]
[1750709903445,0.02468834,2346.6,2346.5,22.62366631]
[1750709903646,2.222986,2348.0,2346.7,14.26122086]
[1750709903961,2.693,2347.9,2346.8,8.362]
[1750709904170,2.222986,2348.0,2347.1,4.26050214]
[1750709904352,2.222986,2348.0,2347.2,0.8112]
[1750709904543,2.222986,2348.0,2346.9,4.2607614]
[1750709904771,2.222986,2348.0,2347.3,4.26020247]
[1750709904772,0.2222986,2347.9,2347.3,4.26020247]
[1750709904990,2.222986,2348.0,2347.3,4.26021386]
[1750709905188,2.222986,2348.0,2347.2,8.358]
[1750709905390,2.222986,2348.0,2347.3,0.768]
[1750709905704,2.222986,2348.0,2347.9,4.25912517]
[1750709905909,2.222986,2348.0,2347.8,8.357]
[1750709906065,2.222986,2348.0,2347.9,4.25912517]
[1750709906373,2.222986,2348.0,2347.8,8.357]
[1750709906573,2.222986,2348.0,2347.5,12.61668721]
[1750709906574,2.4452846,2348.0,2347.5,12.61668721]
[1750709906912,2.222986,2348.0,2347.9,4.25912517]
[1750709907061,2.222986,2348.0,2347.9,23.38412517]
[1750709907266,0.00655451,2349.0,2347.9,11.789]
[1750709907487,0.5716,2348.9,2347.9,0.768]
[1750709907686,0.5716,2348.9,2348.0,8.70852922]
[1750709907887,0.5716,2348.9,2348.1,0.35551407]
[1750709908446,0.00655451,2349.0,2348.1,1.22636548]
[1750709908768,0.00655451,2349.0,2348.2,0.8069]
[1750709908890,0.47815451,2349.3,2348.3,0.3554838]
[1750709909294,2.65537943,2349.2,2348.3,0.3554838]
[1750709909737,12.89652512,2348.9,2348.3,0.3554838]
[1750709909904,12.89652512,2348.5,2348.3,0.3554838]
[1750709910229,10.0,2349.3,2348.3,0.3554838]
[1750709910427,12.89652512,2349.0,2348.3,0.3554838]
[1750709910591,0.036,2349.8,2348.3,0.3554838]
[1750709910792,2.663,2349.7,2348.4,4.25809871]
[1750709910993,2.663,2349.7,2348.5,0.35545352]
[1750709910994,12.89652512,2349.6,2348.5,0.35545352]
[1750709911191,1.55595251,2349.5,2348.5,0.35545352]
[1750709911736,2.663,2349.4,2348.5,0.35545352]
[1750709911896,0.4781,2349.3,2348.5,0.35545352]
[1750709912091,2.663,2349.2,2348.5,4.61337756]
[1750709912291,2.663,2349.2,2348.5,0.35545352]
[1750709912510,0.31411,2349.1,2348.5,0.35545352]
[1750709912731,2.663,2349.0,2348.5,0.35545352]
[1750709913346,0.4781,2349.3,2348.5,0.35545352]
[1750709913556,0.4781,2349.3,2348.2,4.25851322]
[1750709913557,0.4781,2349.7,2348.7,4.25767445]
[1750709913691,0.4781,2349.7,2348.7,8.346]
[1750709913896,0.4781,2349.7,2349.0,4.25707091]
[1750709914146,1.07541,2349.7,2348.8,4.25746206]
[1750709914353,0.036,2349.8,2348.6,0.7591]
[1750709914625,0.036,2349.8,2348.7,0.35542325]
[1750709914827,0.4781,2349.7,2348.7,0.35542325]
[1750709915221,2.662,2349.6,2348.7,0.35542325]
[1750709915415,2.97961,2349.6,2348.7,0.35542325]
[1750709915618,2.662,2349.5,2348.7,0.35542325]
[1750709916198,0.4781,2349.4,2348.7,0.35542325]
[1750709916414,12.89652512,2349.2,2348.7,0.35542325]
[1750709916613,10.4781,2349.1,2348.7,0.35542325]
[1750709916846,0.4781,2348.9,2347.4,0.7875]
[1750709917047,2.33746251,2349.0,2347.6,0.7875]
[1750709917245,2.33746251,2349.0,2347.5,10.35560494]
[1750709917246,2.662,2349.1,2347.5,0.35560494]
[1750709917550,0.4781,2348.8,2347.5,0.35560494]
[1750709917854,0.4781,2348.8,2347.5,4.61543453]
[1750709917855,10.234,2348.7,2347.5,4.61543453]
[1750709918070,12.896,2348.7,2348.0,4.2587808]
[1750709918345,12.896,2348.7,2347.6,4.25966944]
[1750709918346,12.896,2348.7,2347.7,0.9]
[1750709918546,0.4781,2348.5,2347.7,0.9]
[1750709918852,0.4781,2348.5,2347.6,0.35558979]
[1750709920082,8.8211,2348.5,2347.6,0.35558979]
[1750709920251,8.8211,2348.5,2347.6,4.61517526]
[1750709920622,8.8211,2348.5,2347.6,0.35558979]
[1750709920840,1.015851,2348.4,2347.6,0.35558979]
[1750709921018,1.015851,2348.4,2347.4,4.25993829]
[1750709921213,2.662,2348.3,2347.7,4.25945268]
[1750709921444,0.4781,2348.2,2347.4,4.25994993]
[1750709921655,0.4781,2348.2,2346.6,14.26130644]
[1750709921656,0.4781,2348.2,2346.8,4.26112152]
[1750709921880,0.4781,2348.0,2346.6,4.2614847]
[1750709922149,0.4781,2348.0,2346.5,0.7847]
[1750709922150,2.662,2347.9,2346.5,0.7847]
[1750709922451,2.662,2347.8,2347.1,4.26048693]
[1750709922617,0.4781,2348.0,2346.6,4.2614847]
[1750709922817,2.662,2347.7,2347.2,4.26026505]
[1750709923156,0.2662,2347.6,2347.2,4.26026505]
[1750709923717,0.2662,2347.6,2346.8,5.16107042]
[1750709923718,0.2662,2347.6,2346.8,0.9]
[1750709923930,2.662,2347.6,2347.2,4.2602963]
[1750709924146,2.662,2347.5,2347.2,4.2602963]
[1750709924547,2.662,2347.5,2347.1,4.26047733]
[1750709924875,2.662,2347.5,2346.6,4.26147516]
[1750709925160,2.662,2347.5,2347.3,4.26013039]
[1750709925363,2.662,2347.5,2347.2,4.26039536]
[1750709925658,2.662,2347.5,2347.2,4.26038926]
[1750709925859,2.662,2347.5,2347.2,4.26029084]
[1750709926347,2.662,2347.5,2347.3,4.26012708]
[1750709926671,2.662,2347.5,2347.2,4.26037165]
[1750709926836,2.662,2347.5,2347.0,4.26066313]
[1750709927043,2.662,2347.5,2347.2,4.26025106]
[1750709927654,2.662,2347.5,2346.9,4.26093996]
[1750709927844,0.4781,2347.4,2347.0,0.37852782]
[1750709928042,0.4781,2347.4,2346.9,0.37856061]
[1750709928278,0.4781,2347.4,2346.5,0.7847]
[1750709928279,0.79211,2347.4,2346.5,4.26166631]
[1750709928430,0.79211,2347.4,2346.8,4.26110325]
[1750709928630,0.79211,2347.4,2347.0,4.26058827]
[1750709928826,0.4781,2347.4,2347.0,4.2606185]
[1750709929132,0.4781,2347.4,2347.1,0.38004971]
[1750709929473,0.4781,2347.4,2346.7,4.26129194]
[1750709929474,0.4781,2347.8,2347.2,4.64042708]
[1750709929786,0.4781,2347.8,2347.3,0.37957348]